[Event "FIDE WCCC U10 2018"]
[Site "Santiago de Compostela"]
[Date "2018.11.07"]
[Round "3"]
[White "Jin Yueheng"]
[Black "Nesterenko, Kyrylo"]
[Result "1-0"]
[ECO "A32"]
[WhiteElo "1914"]
[BlackElo "1616"]
[Annotator "NA RC"]
[PlyCount "99"]
[EventDate "2018.11.04"]
[EventType "swiss"]
[EventCountry "ESP"]
[SourceTitle "playchess.com"]
[Source "ChessBase"]
[SourceQuality "1"]
[TimeControl "40/5400+30:1800+30"]

{[%evp 8,99,4,4,-2,-4,32767,6,18,16,32767,28,39,27,32767,5,34,16,27,12,33,9,26,34,41,13,31,23,54,45,37,41,96,81,95,102,103,93,100,64,107,108,320,110,118,62,62,0,0,0,88,90,102,86,89,96,95,83,102,95,102,0,68,0,370,431,377,504,406,485,541,438,412,385,430,495,458,483,522,463,581,431,491,509,241,766,1301,32767,32767,32767,1893,32767,32767,29988]} 1. d4 {[%emt 0:00:00]} Nf6 {[%emt 0:00:00]} 2. c4 {[%emt 0:00:00]} c5 {[%emt 0:00:00]} 3. Nf3 {[%emt 0:00:00]} cxd4 {[%emt 0:00:07]} 4. Nxd4 {[%emt 0:00:00]} e6 {[%emt 0:01:01]} 5. e3 {[%emt 0:00:27]} Nc6 {[%emt 0:01:02]} 6. Nc3 {[%emt 0:00:15]} Be7 {[%emt 0:00:28]} 7. Be2 {[%emt 0:00:07] A33: Englische Eröffnung (Symmetrische Variante)} O-O {[%emt 0:00:43]} 8. O-O {[%emt 0:00:09]} d6 {[%emt 0:02:04]} (8... d5 9. cxd5 exd5 10. b3 Qa5 11. Bb2 Nxd4 12. Qxd4 Be6 13. a3 Qc5 14. Nb5 Qxd4 15. Nxd4 Rfc8 16. Rac1 a6 17. Bd3 g6 18. b4 Rxc1 19. Rxc1 {1-0 (55) Bacallao Alonso,Y (2580)-Ortiz Suarez,I (2572) Havana 2012}) 9. b3 {[%emt 0:01:59]} a6 {[%emt 0:00:51]} 10. Bb2 {[%emt 0:04:01] LiveBook: 14 Partien} Bd7 {[%emt 0:01:21]} 11. Bf3 {[%emt 0:01:16]} Qc7 {[%emt 0:00:27]} 12. g3 $146 {[%emt 0:01:22]} ({Vorgänger:} 12. Nxc6 bxc6 13. Rc1 Rad8 14. Qd4 e5 {0-1 (56) Bemporad,F (2079)-Roy Chowdhury,S (2391) Bratto 2012}) 12... Rac8 {[%emt 0:01:27]} 13. Rc1 {[%emt 0:00:20]} Rfd8 {[%emt 0:00:37]} 14. Qe2 {[%emt 0:00:39]} Ne8 {[%emt 0:16:42]} 15. Rfd1 {[%emt 0:02:04]} Qb8 {[%emt 0:01:25]} 16. Nxc6 {[%emt 0:11:30]} Bxc6 {[%emt 0:00:48]} 17. Bxc6 {[%emt 0:00:05]} bxc6 {[%emt 0:01:15]} 18. c5 {[%emt 0:00:14]} d5 {[%emt 0:08:45]} 19. Qxa6 {[%emt 0:00:38]} Bxc5 {[%emt 0:00:47]} (19... Nf6 $14) 20. Na4 {[%emt 0:00:11]} Bf8 {[%emt 0:00:48]} 21. Rxc6 {[%emt 0:03:11]} Rxc6 {[%emt 0:00:15]} 22. Qxc6 {[%emt 0:00:06]} Rc8 {[%emt 0:01:15]} 23. Qa6 {[%emt 0:00:57]} Rc2 {[%emt 0:01:30]} 24. Qd3 {[%emt 0:00:13]} Qc8 $2 {[%emt 0:01:30] [#]} (24... Rc6 $16 {was necessary.}) 25. Rd2 {[%emt 0:01:13]} (25. Nb6 $1 $18 {[%cal Rb6c8]} Qc6 {[#]} 26. Nc4 $1 {[%mdl 512]}) 25... Rc6 {[%emt 0:01:20]} 26. Qb1 {[%emt 0:05:10]} Nf6 {[%emt 0:03:04]} 27. Rd1 {[%emt 0:00:24]} Ne4 {[%emt 0:01:08]} 28. Rc1 {[%emt 0:00:28]} Rxc1+ {[%emt 0:10:05]} (28... d4 $1 $11) 29. Qxc1 {[%emt 0:00:06]} Qa6 {[%emt 0:00:28]} 30. Qc2 {[%emt 0:00:39]} Bb4 {[%emt 0:08:53]} 31. Qd1 {[%emt 0:00:41]} h6 {[%emt 0:02:49]} 32. Kg2 {[%emt 0:06:54]} Be7 {[%emt 0:04:15]} 33. Qc2 {[%emt 0:02:23]} Qb7 {[%emt 0:13:45]} 34. Kg1 {[%emt 0:01:08]} ({White should try} 34. Bd4 $16) 34... Qa6 {[%emt 0:01:59]} ({Black should try} 34... d4 $11) 35. Nc3 {[%emt 0:02:37]} (35. f3 $16 Nd6 36. g4) 35... Bf6 $2 {[%emt 0:07:35]} (35... Qc6 $14) 36. Nxe4 {[%emt 0:00:17]} Bxb2 {[%emt 0:00:07]} 37. Qxb2 {[%emt 0:00:28]} dxe4 {[%emt 0:00:06]} 38. b4 {[%emt 0:01:58]} Qd3 {[%emt 0:00:10]} 39. Qc1 {[%emt 0:00:08]} Qb5 {[%emt 0:00:27]} 40. Qb1 {[%emt 0:00:00]} f5 {[%emt 0:00:00]} 41. Qb3 {[%emt 0:01:18]} Kf7 {[%emt 0:00:43]} 42. a4 {[%emt 0:00:44]} Qb6 {[%emt 0:02:18]} 43. b5 {[%emt 0:00:20]} g5 {[%emt 0:01:23]} 44. Qc4 {[%emt 0:00:39]} Qa5 {[%emt 0:27:05]} 45. Qd4 {[%emt 0:00:16]} Qe1+ {[%emt 0:00:22]} (45... f4 $142 46. exf4 gxf4 47. Qxe4 fxg3 48. hxg3 Ke7) 46. Kg2 {[%emt 0:00:03]} h5 {[%emt 0:01:06]} 47. b6 {[%emt 0:02:43]} h4 {[%emt 0:00:20]} 48. gxh4 {[%emt 0:00:06]} gxh4 {[%emt 0:00:28]} 49. h3 {[%emt 0:00:17]} Qb1 {[%emt 0:03:40]} 50. Qd7+ {[%emt 0:00:52]} 1-0

[Event "FIDE WCCC U10 2018"]
[Site "Santiago de Compostela"]
[Date "2018.11.07"]
[Round "3"]
[White "Uritsky, Yonathan"]
[Black "Bakhrillaev, Bakhrom"]
[Result "1-0"]
[ECO "A20"]
[WhiteElo "1902"]
[BlackElo "1587"]
[Annotator "NA RC"]
[PlyCount "81"]
[EventDate "2018.11.04"]
[EventType "swiss"]
[EventCountry "ESP"]
[SourceTitle "playchess.com"]
[Source "ChessBase"]
[SourceQuality "1"]
[TimeControl "40/5400+30:1800+30"]

{[%evp 10,78,79,58,97,117,117,112,125,114,94,32767,178,171,177,149,171,110,132,95,105,102,104,112,107,127,134,117,119,107,135,85,87,116,100,55,70,68,60,68,85,120,127,46,60,61,77,20,134,-97,-105,-113,-73,-82,32767,-13,157,32767,362,368,32767,414,350,413,458,440,32767,1083,32767,353,1569]} 1. c4 {[%emt 0:00:00]} e5 {[%emt 0:00:00]} 2. g3 {[%emt 0:00:10]} Nf6 {[%emt 0:00:00]} 3. Bg2 {[%emt 0:00:41]} Nc6 {[%emt 0:00:04]} 4. Nc3 {[%emt 0:01:02]} Bc5 {[%emt 0:00:13]} 5. Nf3 {[%emt 0:00:37]} e4 {[%emt 0:00:11]} (5... O-O $11) 6. Nh4 {[%emt 0:07:19] LiveBook: 3 Games A29: Englische Eröffnung (Vierspringer-Variante)} (6. Ng5 Bxf2+ 7. Kxf2 Ng4+ 8. Kg1 Qxg5 9. Nxe4 Qe5 10. e3 d6 11. d4 Qe7 12. Qf3 f5 13. Nc3 Nb4 {1-0 (51) Maksimovic,B (2324)-Stamatovic,A (2180) Belgrade 2016}) 6... g5 {[%emt 0:00:56]} 7. Nf5 {[%emt 0:00:17]} (7. d4 Bxd4 8. Bxg5 h6) 7... d6 $146 {[%emt 0:00:06]} ({Vorgänger:} 7... d5 8. cxd5 Nxd5 9. Bxe4 Bxf5 10. Bxf5 Nxc3 11. bxc3 Ne7 12. Qa4+ c6 13. Qe4 h5 {1-0 (25) Sellen,I (2026)-Stoeveken,P (1584) Wellington 2010}) 8. Ne3 {[%emt 0:01:05]} Bxe3 {[%emt 0:00:14]} 9. dxe3 {[%emt 0:02:43]} Bf5 {[%emt 0:00:22]} 10. b3 {[%emt 0:00:33]} Kd7 {[%emt 0:10:27]} (10... Rf8 $16) 11. Bb2 {[%emt 0:01:42]} Re8 {[%emt 0:00:08]} 12. h4 {[%emt 0:06:56]} g4 {[%emt 0:01:44]} 13. Nd5 {[%emt 0:01:23]} Ne5 {[%emt 0:01:38]} 14. Qd4 {[%emt 0:02:08]} Nxd5 {[%emt 0:07:12]} 15. Qxd5 {[%emt 0:00:14]} c6 {[%emt 0:00:11]} 16. Qd4 {[%emt 0:01:08]} h5 {[%emt 0:04:43]} 17. O-O-O {[%emt 0:01:59]} Kc7 {[%emt 0:02:42]} 18. Bxe4 {[%emt 0:02:35]} Bxe4 {[%emt 0:01:27]} 19. Qxe4 {[%emt 0:01:35]} Qf6 {[%emt 0:00:16]} 20. Qf4 {[%emt 0:02:09]} Qxf4 {[%emt 0:03:13]} 21. exf4 {[%emt 0:00:24]} Nd7 {[%emt 0:05:04]} 22. Rhe1 {[%emt 0:04:29]} Nc5 {[%emt 0:01:20]} 23. Bd4 {[%emt 0:07:28]} Ne4 {[%emt 0:03:36]} 24. Rd3 {[%emt 0:05:08]} Re6 {[%emt 0:07:09]} 25. f5 {[%emt 0:05:06]} Ree8 {[%emt 0:01:19]} 26. Red1 {[%emt 0:04:52]} (26. Rg1 $16) 26... Re7 {[%emt 0:11:29]} 27. Be3 {[%emt 0:02:37]} Re5 {[%emt 0:00:50]} 28. f6 {[%emt 0:18:46]} (28. Bf4 $16 Rxf5 29. Re3 (29. Bxd6+ Nxd6 30. Rxd6 Re8 $11) 29... Rxf4 30. gxf4 Nxf2 31. Rf1) 28... Rf5 {[%emt 0:01:31] [#]} ({Better is} 28... Rd8 $14) 29. Rd4 $2 {[%emt 0:05:57] [#]} (29. f3 $1 $16 {[%cal Rf3e4]} gxf3 30. exf3 Rxf3 {[#]} 31. Bb6+ $1 {[%mdl 512]} axb6 32. Rxf3) 29... Re8 $1 {[%emt 0:00:51]} 30. Bf4 {[%emt 0:02:58]} Rxf6 {[%emt 0:07:22]} 31. c5 {[%emt 0:02:33]} Ree6 {[%emt 0:00:46]} 32. cxd6+ {[%emt 0:01:12]} Nxd6 $2 {[%emt 0:00:14]} ({Better is} 32... Kd7 $11) 33. e4 {[%emt 0:00:37]} Rg6 $2 {[%emt 0:01:59]} (33... Rxf4 $16 {is a better defense.} 34. gxf4 Nxe4) 34. e5 {[%emt 0:01:13]} Nb5 {[%emt 0:03:09]} 35. Rd7+ {[%emt 0:00:04]} Kb6 {[%emt 0:00:16]} 36. Rxf7 {[%emt 0:00:33]} Nc3 {[%emt 0:01:46]} 37. Rdd7 {[%emt 0:00:38]} Rg8 {[%emt 0:02:08]} 38. Rxb7+ $18 {[%emt 0:01:30]} Kc5 {[%emt 0:00:47]} 39. Be3+ {[%emt 0:00:25]} Kd5 {[%emt 0:00:09]} 40. Rbd7+ {[%emt 0:00:00]} Ke4 {[%emt 0:00:00]} 41. Rf4+ {[%emt 0:00:24] Kd5} 1-0

[Event "FIDE WCCC U10 2018"]
[Site "Santiago de Compostela"]
[Date "2018.11.07"]
[Round "3"]
[White "Vetokhin, Savva"]
[Black "Seder, Mohamad"]
[Result "1-0"]
[ECO "B36"]
[WhiteElo "1874"]
[BlackElo "1653"]
[Annotator "NA RC"]
[PlyCount "74"]
[EventDate "2018.11.04"]
[EventType "swiss"]
[EventCountry "ESP"]
[SourceTitle "playchess.com"]
[Source "ChessBase"]
[SourceQuality "1"]
[TimeControl "40/5400+30:1800+30"]

{[%evp 8,74,29,39,34,32767,32767,32767,46,45,64,47,63,52,50,43,56,18,16,14,14,17,11,11,16,13,9,10,35,30,43,25,108,97,99,93,93,85,113,110,108,112,114,109,118,89,95,7,162,0,18,0,214,244,203,229,218,180,235,231,387,277,365,403,583,322,412,592,923]} 1. e4 {[%emt 0:00:00]} c5 {[%emt 0:01:50]} 2. Nf3 {[%emt 0:00:00]} g6 {[%emt 0:00:46]} 3. d4 {[%emt 0:00:03]} cxd4 {[%emt 0:00:24]} 4. Nxd4 {[%emt 0:00:17]} Nc6 {[%emt 0:00:22]} 5. c4 {[%emt 0:00:08]} Nf6 {[%emt 0:00:46]} 6. Nc3 {[%emt 0:00:09]} d6 {[%emt 0:00:29]} 7. Be2 {[%emt 0:01:11]} Bg7 {[%emt 0:00:20]} 8. Be3 {[%emt 0:00:15]} O-O {[%emt 0:01:04]} 9. O-O {[%emt 0:00:18]} Nxd4 {[%emt 0:02:28]} 10. Bxd4 {[%emt 0:00:09]} Bd7 {[%emt 0:02:04]} 11. f3 {[%emt 0:01:19]} a5 {[%emt 0:04:42] LiveBook: 141 Games B38: Sizilianisch (Maroczy-Aufbau)} 12. Nd5 {[%emt 0:03:02]} (12. b3 Bc6 13. Qd2 Nd7 14. Be3 Nc5 15. Rab1 Qb6 16. Rfc1 Rfc8 17. Rc2 Qb4 18. Qc1 Qb6 19. Kh1 h5 20. a3 Qd8 21. Qd2 Kh7 22. Bf1 Qf8 23. b4 axb4 24. axb4 Na4 25. Ne2 {1-0 (55) Navara,D (2734)-Mamedov,R (2650) Huaian 2016}) 12... Nxd5 {[%emt 0:05:20]} 13. cxd5 {[%emt 0:00:10]} Rc8 $146 {[%emt 0:02:09]} ({Vorgänger:} 13... a4 14. Bxg7 Kxg7 15. Qd4+ Kg8 16. Rac1 Qa5 17. Rc3 Rac8 18. Rfc1 Rxc3 19. Rxc3 {0-1 (46) Raja,H (2377)-Annaberdiev,M (2485) Warsaw 2017}) 14. Bxg7 {[%emt 0:04:56]} Kxg7 {[%emt 0:00:16]} 15. Qd4+ {[%emt 0:02:10]} Kg8 {[%emt 0:00:45]} 16. Rac1 {[%emt 0:07:27]} Rc7 {[%emt 0:12:58]} 17. Qe3 {[%emt 0:04:13]} Qb8 {[%emt 0:05:09]} 18. Rxc7 {[%emt 0:00:23]} Qxc7 {[%emt 0:00:10]} 19. Rc1 {[%emt 0:00:04]} Qb8 {[%emt 0:00:25] [#]} (19... Qd8 $11 {remains equal.}) 20. Qb6 $1 {[%emt 0:01:35]} Rc8 {[%emt 0:00:16]} 21. Rxc8+ {[%emt 0:00:18]} Qxc8 {[%emt 0:00:02]} 22. Qxa5 {[%emt 0:00:11]} Qc2 {[%emt 0:06:46]} 23. Kf2 {[%emt 0:01:23]} Be8 {[%emt 0:06:12]} 24. Qc3 {[%emt 0:01:39]} Qa4 {[%emt 0:00:51]} 25. a3 {[%emt 0:01:06]} f6 {[%emt 0:01:48]} 26. Kg3 {[%emt 0:08:38]} g5 {[%emt 0:05:31]} 27. Qc8 {[%emt 0:07:22]} (27. Kf2 $16) 27... h5 $2 {[%emt 0:02:24]} (27... Kf7 $11 {and Black stays safe.}) 28. h3 {[%emt 0:04:55]} (28. Qxb7 $16 Kf7 29. Kf2) 28... Kf7 $1 {[%emt 0:01:00]} 29. Qxb7 {[%emt 0:06:02]} h4+ $2 {[%emt 0:01:18] [#]} (29... Qd4 $11 {and Black is okay.} 30. Kh2 Qd2) 30. Kf2 $1 {[%emt 0:01:37]} Qd4+ {[%emt 0:00:16]} 31. Kf1 {[%emt 0:00:07]} Qc5 {[%emt 0:01:02]} 32. Qb4 {[%emt 0:00:30]} Qc1+ {[%emt 0:01:16]} 33. Kf2 {[%emt 0:01:14]} Kg6 {[%emt 0:02:15]} (33... Bd7 $142 34. Qd4 Qc2) 34. Qc3 {[%emt 0:00:24]} Qxc3 $18 {[%emt 0:01:11]} (34... Qb1 {was worth a try.} 35. b3 Qh1) 35. bxc3 {[%emt 0:00:07]} f5 {[%emt 0:00:22]} 36. Ke3 {[%emt 0:00:11]} Bd7 {[%emt 0:00:34]} 37. Kd4 {[%emt 0:00:10]} Bc8 {[%emt 0:00:14]} 1-0

[Event "FIDE WCCC U10 2018"]
[Site "Santiago de Compostela"]
[Date "2018.11.07"]
[Round "3"]
[White "Todev, Simeon"]
[Black "Lomtadze, Davit"]
[Result "1/2-1/2"]
[ECO "B32"]
[WhiteElo "1767"]
[BlackElo "1595"]
[Annotator "NA RC"]
[PlyCount "108"]
[EventDate "2018.11.04"]
[EventType "swiss"]
[EventCountry "ESP"]
[SourceTitle "playchess.com"]
[Source "ChessBase"]
[SourceQuality "1"]
[TimeControl "40/5400+30:1800+30"]

1. e4 {[%emt 0:00:00]} c5 {[%emt 0:00:00]} 2. Nf3 {[%emt 0:00:00]} Nc6 {[%emt 0:00:00]} 3. d4 {[%emt 0:00:01]} cxd4 {[%emt 0:00:12]} 4. Nxd4 {[%emt 0:00:09]} e5 {[%emt 0:00:20]} 5. Nb5 {[%emt 0:00:04]} d6 {[%emt 0:00:12]} 6. N1c3 {[%emt 0:00:08]} a6 {[%emt 0:00:17]} 7. Na3 {[%emt 0:00:04]} b5 {[%emt 0:00:17]} 8. Nd5 {[%emt 0:00:06]} Nf6 {[%emt 0:00:15]} 9. Bg5 {[%emt 0:00:11]} Be7 {[%emt 0:00:12]} 10. Bxf6 {[%emt 0:00:08]} Bxf6 {[%emt 0:00:11]} 11. c3 {[%emt 0:00:05]} Bg5 {[%emt 0:01:12]} 12. Nc2 {[%emt 0:00:07]} O-O {[%emt 0:01:58]} 13. a4 {[%emt 0:00:34]} Rb8 {[%emt 0:07:23]} 14. axb5 {[%emt 0:01:02]} axb5 {[%emt 0:00:24]} 15. Nce3 {[%emt 0:02:35]} b4 {[%emt 0:12:08]} 16. Bc4 {[%emt 0:13:32]} bxc3 {[%emt 0:06:18]} 17. bxc3 {[%emt 0:00:09]} Be6 {[%emt 0:11:47]} 18. Nf5 {[%emt 0:03:25]} Bxf5 {[%emt 0:13:02]} 19. exf5 {[%emt 0:00:10]} Ne7 {[%emt 0:02:23]} 20. h4 {[%emt 0:03:26]} Bh6 {[%emt 0:10:03]} 21. f6 {[%emt 0:01:45]} Nxd5 {[%emt 0:03:18]} 22. fxg7 {[%emt 0:00:08]} Bxg7 {[%emt 0:00:06]} 23. Bxd5 {[%emt 0:00:50]} e4 {[%emt 0:05:51]} 24. Rc1 {[%emt 0:13:34]} Rc8 {[%emt 0:12:02]} 25. c4 {[%emt 0:01:11]} Qa5+ {[%emt 0:04:57]} 26. Kf1 {[%emt 0:00:59]} Rfe8 {[%emt 0:03:25]} 27. Qh5 {[%emt 0:00:40]} Qa7 {[%emt 0:01:53]} 28. Re1 {[%emt 0:01:42]} Re5 {[%emt 0:03:20]} 29. Qg4 {[%emt 0:00:09]} Rce8 {[%emt 0:00:17]} 30. h5 {[%emt 0:00:45]} h6 {[%emt 0:00:36]} 31. Rh3 {[%emt 0:02:20]} Kh8 {[%emt 0:00:32]} 32. Rhe3 {[%emt 0:00:41]} f5 {[%emt 0:00:37]} 33. Qg6 {[%emt 0:00:20]} Qe7 {[%emt 0:00:27]} 34. g3 {[%emt 0:00:31]} Qf6 {[%emt 0:00:32]} 35. Rb3 {[%emt 0:02:28]} R5e7 {[%emt 0:00:32]} 36. Qxf6 {[%emt 0:00:57]} Bxf6 {[%emt 0:00:04]} 37. Rb6 {[%emt 0:00:04]} Be5 {[%emt 0:00:27]} 38. c5 {[%emt 0:00:13]} dxc5 {[%emt 0:00:56]} 39. Rxh6+ {[%emt 0:00:07]} Kg7 {[%emt 0:00:03]} 40. Rg6+ {[%emt 0:00:00]} Kh7 {[%emt 0:00:00]} 41. Rb1 {[%emt 0:01:31]} Rb8 {[%emt 0:18:24]} 42. Rxb8 {[%emt 0:01:01]} Bxb8 {[%emt 0:00:06]} 43. Bg8+ {[%emt 0:00:53]} Kh8 {[%emt 0:00:20]} 44. Be6 {[%emt 0:00:10]} f4 {[%emt 0:03:57]} 45. Rg8+ {[%emt 0:03:51]} Kh7 {[%emt 0:00:06]} 46. Rxb8 {[%emt 0:00:21]} Rxe6 {[%emt 0:00:04]} 47. gxf4 {[%emt 0:00:15]} Rf6 {[%emt 0:00:52]} 48. Rc8 {[%emt 0:02:38]} Rxf4 {[%emt 0:00:24]} 49. Ke2 {[%emt 0:00:19]} Rf5 {[%emt 0:02:19]} 50. Ke3 {[%emt 0:00:04]} Rf3+ {[%emt 0:00:30]} 51. Kxe4 {[%emt 0:00:19]} Rxf2 {[%emt 0:00:04]} 52. Rc6 {[%emt 0:00:37]} Rh2 {[%emt 0:00:39]} 53. Kd5 {[%emt 0:00:22]} Rxh5+ {[%emt 0:00:07]} 54. Kc4 {[%emt 0:00:03]} Rh6 1/2-1/2

[Event "FIDE WCCC U10 2018"]
[Site "Santiago de Compostela"]
[Date "2018.11.07"]
[Round "3"]
[White "Nemsadze, Daviti"]
[Black "Lyakh, Vasiliy"]
[Result "1-0"]
[ECO "A25"]
[WhiteElo "1762"]
[BlackElo "1363"]
[Annotator "NA RC"]
[PlyCount "77"]
[EventDate "2018.11.04"]
[EventType "swiss"]
[EventCountry "ESP"]
[SourceTitle "playchess.com"]
[Source "ChessBase"]
[SourceQuality "1"]
[TimeControl "40/5400+30:1800+30"]

1. c4 {[%emt 0:00:06]} e5 {[%emt 0:00:00]} 2. Nc3 {[%emt 0:00:18]} Nc6 {[%emt 0:00:00]} 3. g3 {[%emt 0:00:05]} Bc5 {[%emt 0:00:00]} 4. Bg2 {[%emt 0:00:03]} d6 {[%emt 0:00:03]} 5. d3 {[%emt 0:00:38]} Nf6 {[%emt 0:03:08]} 6. e3 {[%emt 0:00:06]} a6 {[%emt 0:03:16]} 7. Nge2 {[%emt 0:00:13]} O-O {[%emt 0:01:02]} 8. O-O {[%emt 0:00:03]} Bg4 {[%emt 0:04:34]} 9. a3 {[%emt 0:00:55]} Rb8 {[%emt 0:02:26]} 10. b4 {[%emt 0:03:15]} Bb6 {[%emt 0:05:51]} 11. Bb2 {[%emt 0:12:00]} Qd7 {[%emt 0:04:42]} 12. Nd5 {[%emt 0:03:19]} Nxd5 {[%emt 0:01:49]} 13. cxd5 {[%emt 0:00:05]} Ne7 {[%emt 0:00:06]} 14. Qd2 {[%emt 0:10:07]} Rfe8 {[%emt 0:07:36]} 15. Kh1 {[%emt 0:03:50]} h6 {[%emt 0:09:26]} 16. f3 {[%emt 0:02:33]} Bh3 {[%emt 0:10:48]} 17. e4 {[%emt 0:00:17]} Bxg2+ {[%emt 0:01:30]} 18. Kxg2 {[%emt 0:00:06]} c6 {[%emt 0:02:58]} 19. dxc6 {[%emt 0:00:40]} bxc6 {[%emt 0:00:08]} 20. d4 {[%emt 0:08:05]} Ng6 {[%emt 0:04:26]} 21. Rfd1 {[%emt 0:00:34]} Rbd8 {[%emt 0:05:05]} 22. Rac1 {[%emt 0:01:41]} d5 {[%emt 0:06:51]} 23. Qc3 {[%emt 0:13:36]} Re6 {[%emt 0:07:09]} 24. dxe5 {[%emt 0:03:00]} f6 {[%emt 0:13:54]} 25. exf6 {[%emt 0:00:26]} Rxf6 {[%emt 0:00:12]} 26. e5 {[%emt 0:00:53]} Nxe5 {[%emt 0:01:27]} 27. Qc2 {[%emt 0:15:05]} Re6 {[%emt 0:04:31]} 28. Nf4 {[%emt 0:01:07]} Nc4 {[%emt 0:00:30]} 29. Qxc4 {[%emt 0:00:17]} dxc4 {[%emt 0:00:04]} 30. Rxd7 {[%emt 0:00:04]} Rxd7 {[%emt 0:00:10]} 31. Nxe6 {[%emt 0:00:05]} Rd2+ {[%emt 0:00:04]} 32. Kh3 {[%emt 0:00:19]} Rxb2 {[%emt 0:00:07]} 33. Rxc4 {[%emt 0:00:03]} Bg1 {[%emt 0:01:30]} 34. Rxc6 {[%emt 0:00:08]} h5 {[%emt 0:00:59]} 35. Kh4 {[%emt 0:00:47]} Rxh2+ {[%emt 0:00:33]} 36. Kg5 {[%emt 0:00:05]} Rg2 {[%emt 0:00:31]} 37. Kxh5 {[%emt 0:00:58]} Rxg3 {[%emt 0:00:06]} 38. Ng5 {[%emt 0:00:15]} Kf8 {[%emt 0:00:44]} 39. Rg6 {[%emt 0:00:40]} 1-0